fUSD/lending_fUSD_20250108
["ID","MTS","AMOUNT","RATE_DAILY","PERIOD"]
[348158255,1736358669334,-500.0,0.0001178,2]
[348158256,1736358669343,-569.27488791,0.0001178,2]
[348158257,1736358669352,-150.0,0.00011788,2]
[348158258,1736358669362,-150.0,0.00011788,2]
[348158259,1736358669371,-150.0,0.0001179,2]
[348158260,1736358669381,-150.0,0.0001179,2]
[348158261,1736358669391,-150.0,0.00011791,2]
[348158262,1736358669403,-500.0,0.00011794,2]
[348158263,1736358669412,-500.0,0.00011795,2]
[348158264,1736358669422,-835.61,0.00011795,2]
[348158265,1736358669431,-500.0,0.00011795,2]
[348158266,1736358669440,-641.86,0.00011795,2]
[348158267,1736358669450,-500.0,0.00011795,2]
[348158268,1736358669463,-615.0,0.00011795,2]
[348158269,1736358669481,-1257.65,0.00011795,2]
[348158270,1736358669495,-698.7,0.00011796,2]
[348158271,1736358669511,-1000.0,0.00011796,2]
[348158272,1736358669528,-523.81,0.00011796,2]
[348158273,1736358669543,-500.0,0.00011796,2]
[348158274,1736358669558,-1321.17,0.00011796,2]
[348158275,1736358669574,-1035.42,0.00011796,2]
[348158276,1736358669591,-150.50152616,0.00011797,2]
[348158277,1736358669607,-200.0,0.000118,2]
[348158278,1736358669626,-1805.0,0.000118,4]
[348158279,1736358669641,-423.85,0.000118,2]
[348158280,1736358669660,-423.85,0.000118,2]
[348158281,1736358669676,-423.85,0.000118,2]
[348158282,1736358669689,-423.85,0.000118,2]
[348158283,1736358669702,-423.85,0.000118,2]
[348158284,1736358669719,-423.85,0.000118,2]
[348158285,1736358669731,-423.85,0.000118,2]
[348158286,1736358669745,-423.85,0.000118,2]
[348158287,1736358669762,-423.85,0.000118,2]
[348158288,1736358669775,-423.85,0.000118,2]
[348158289,1736358669790,-423.85,0.000118,2]
[348158290,1736358669805,-423.85,0.000118,2]
[348158291,1736358669821,-423.85,0.000118,2]
[348158292,1736358669836,-423.85,0.000118,2]
[348158293,1736358669849,-423.85,0.000118,2]
[348158294,1736358669863,-423.85,0.000118,2]
[348158295,1736358669877,-423.85,0.000118,2]
[348158296,1736358669891,-423.85,0.000118,2]
[348158297,1736358669906,-423.85,0.000118,2]
[348158298,1736358669920,-423.85,0.000118,2]
[348158299,1736358669934,-423.85,0.000118,2]
[348158300,1736358669948,-423.85,0.000118,2]
[348158301,1736358669962,-423.85,0.000118,2]
[348158302,1736358669976,-423.85,0.000118,2]
[348158303,1736358669989,-423.85,0.000118,2]
[348158304,1736358670002,-423.85,0.000118,2]
[348158305,1736358670016,-423.85,0.000118,2]
[348158306,1736358670030,-423.85,0.000118,2]
[348158307,1736358670044,-423.85,0.000118,2]
[348158308,1736358670057,-423.85,0.000118,2]
[348158309,1736358670073,-423.85,0.000118,2]
[348158310,1736358670086,-423.85,0.000118,2]
[348158311,1736358670099,-423.85,0.000118,2]
[348158312,1736358670113,-423.85,0.000118,2]
[348158313,1736358670127,-423.85,0.000118,2]
[348158314,1736358670141,-423.85,0.000118,2]
[348158315,1736358670156,-423.85,0.000118,2]
[348158316,1736358670169,-423.85,0.000118,2]
[348158317,1736358670183,-423.85,0.000118,2]
[348158318,1736358670197,-423.85,0.000118,2]
[348158319,1736358670211,-423.85,0.000118,2]
[348158320,1736358670224,-423.85,0.000118,2]
[348158321,1736358670238,-423.85,0.000118,2]
[348158322,1736358670252,-423.85,0.000118,2]
[348158323,1736358670266,-423.85,0.000118,2]
[348158324,1736358670280,-423.85,0.000118,2]
[348158325,1736358670293,-423.85,0.000118,2]
[348158326,1736358670307,-423.85,0.000118,2]
[348158327,1736358670321,-423.85,0.000118,2]
[348158328,1736358670338,-423.85,0.000118,2]
[348158329,1736358670352,-423.85,0.000118,2]
[348158330,1736358670366,-423.85,0.000118,2]
[348158331,1736358670379,-423.85,0.000118,2]
[348158332,1736358670392,-423.85,0.000118,2]
[348158333,1736358670408,-423.85,0.000118,2]
[348158334,1736358670422,-423.85,0.000118,2]
[348158335,1736358670436,-423.85,0.000118,2]
[348158336,1736358670449,-423.85,0.000118,2]
[348158337,1736358670463,-423.85,0.000118,2]
[348158338,1736358670476,-423.85,0.000118,2]
[348158339,1736358670490,-423.85,0.000118,2]
[348158340,1736358670504,-150.0,0.00011806,2]
[348158341,1736358670518,-1500.0,0.00011807,2]
[348158342,1736358670533,-500.0,0.00011816,2]
[348158343,1736358670546,-500.0,0.00011816,2]
[348158344,1736358670559,-500.0,0.00011816,2]
[348158345,1736358670573,-613.51,0.00011816,2]
[348158346,1736358670587,-477.71560071,0.00011816,2]
[348158347,1736358670600,-652.44,0.00011816,2]
[348158348,1736358670614,-500.0,0.00011816,2]
[348158349,1736358670627,-660.33,0.00011816,2]
[348158350,1736358670641,-669.83,0.00011816,2]
[348158351,1736358670655,-500.0,0.00011816,2]
[348158352,1736358670668,-500.0,0.00011816,2]
[348158353,1736358670682,-500.0,0.00011816,2]
[348158354,1736358670696,-500.0,0.00011816,2]
[348158355,1736358670709,-500.0,0.00011816,2]
[348158356,1736358670722,-500.0,0.00011816,2]
[348158357,1736358670736,-500.0,0.00011816,2]
[348158358,1736358670751,-285.31,0.00011816,2]
[348158359,1736358670765,-500.0,0.00011816,2]
[348158360,1736358670779,-500.0,0.00011816,2]
[348158361,1736358670794,-500.0,0.00011816,2]
[348158362,1736358670810,-500.0,0.00011816,2]
[348158363,1736358670824,-500.0,0.00011816,2]
[348158364,1736358670835,-500.0,0.00011816,2]
[348158365,1736358670846,-500.0,0.00011816,2]
[348158366,1736358670855,-577.26,0.00011816,2]
[348158367,1736358670865,-732.89,0.00011816,2]
[348158368,1736358671064,-668.24,0.00011816,2]
[348158369,1736358671090,-551.84,0.00011816,2]
[348158370,1736358671104,-500.0,0.00011816,2]
[348158371,1736358671113,-500.0,0.00011816,2]
[348158372,1736358671122,-500.0,0.00011816,2]
[348158373,1736358671132,-150.0,0.00011826,2]
[348158374,1736358671142,-1500.0,0.00011826,2]
[348158375,1736358671154,-532.53,0.0001184,2]
[348158376,1736358671164,-1500.0,0.00011848,2]
[348158377,1736358671174,-555.04,0.00011854,2]
[348158378,1736358671183,-150.227651,0.00011858,2]
[348158379,1736358671193,-150.0,0.00011862,2]
[348158380,1736358671202,-500.0,0.00011905,2]
[348158381,1736358671212,-500.0,0.00011905,2]
[348158382,1736358671221,-410.4525626,0.00011905,2]
[348158383,1736358671231,-500.0,0.00011905,2]
[348158384,1736358671240,-500.0,0.00011905,2]
[348158385,1736358671250,-289.82800921,0.00011905,2]
[348158386,1736358671259,-1465.0,0.00011918,2]
[348158387,1736358671269,-150.0,0.00011926,2]
[348158388,1736358671279,-150.0,0.0001193,2]
[348158389,1736358671288,-150.0,0.00011933,2]
[348158390,1736358671297,-1500.0,0.00011935,2]
[348158391,1736358671307,-1500.0,0.0001194,2]
[348158392,1736358671316,-1083.11,0.00011953,2]
[348158393,1736358671325,-516.58,0.00011953,2]
[348158394,1736358671335,-500.0,0.00011953,2]
[348158395,1736358671344,-984.28,0.00011953,2]
[348158396,1736358671354,-1369.61,0.00011953,2]
[348158397,1736358671363,-1218.11,0.00011953,2]
[348158398,1736358671373,-914.32,0.00011953,2]
[348158399,1736358671382,-1814.27,0.00011953,2]
[348158400,1736358671391,-798.74,0.00011953,2]
[348158401,1736358671401,-3201.05,0.00011953,2]
[348158402,1736358671410,-2717.33,0.00011953,2]
[348158403,1736358671419,-500.0,0.00011953,2]
[348158404,1736358671428,-1247.08,0.00011953,2]
[348158405,1736358671437,-2263.75,0.00011953,2]
[348158406,1736358671448,-1013.56,0.00011953,2]
[348158407,1736358671459,-546.88,0.00011953,2]
[348158408,1736358671468,-959.73,0.00011953,2]
[348158409,1736358671478,-902.05,0.00011953,2]
[348158410,1736358671488,-1571.05,0.00011953,2]
[348158411,1736358671498,-1011.19,0.00011954,2]
[348158412,1736358671509,-1352.67,0.00011954,2]
[348158413,1736358671519,-878.9,0.00011954,2]
[348158414,1736358671528,-766.28,0.00011954,2]
[348158415,1736358671538,-500.0,0.00011954,2]
[348158416,1736358671549,-762.31,0.00011954,2]
[348158417,1736358671558,-2056.21,0.00011954,2]
[348158418,1736358671568,-1011.92,0.00011954,2]
[348158419,1736358671578,-500.0,0.00011954,2]
[348158420,1736358671589,-150.0,0.00011956,2]
[348158421,1736358671599,-1500.0,0.0001196,2]
[348158422,1736358671609,-4226.91,0.00011961,2]
[348158423,1736358671619,-1500.0,0.00011963,2]
[348158424,1736358671629,-216.08545487,0.0001197,2]
[348158425,1736358671638,-1000.0,0.00011975,2]
[348158426,1736358671648,-150.0,0.00011981,2]
[348158427,1736358671658,-1500.0,0.00011985,2]
[348158428,1736358671667,-1500.0,0.0001199,2]
[348158429,1736358671676,-500.0,0.00011991,2]
[348158430,1736358671686,-522.19,0.00011991,2]
[348158431,1736358671696,-500.0,0.00011991,2]
[348158432,1736358671705,-188.49853751,0.00011991,2]
[348158433,1736358671714,-500.0,0.00011991,2]
[348158434,1736358671725,-500.0,0.00011991,2]
[348158435,1736358671734,-500.0,0.00011991,2]
[348158436,1736358671744,-555.04,0.00011991,2]
[348158437,1736358671754,-567.11,0.00011991,2]
[348158438,1736358671765,-737.87,0.00011991,2]
[348158439,1736358671774,-500.0,0.00011991,2]
[348158440,1736358671783,-607.18,0.00011991,2]
[348158441,1736358671794,-340.13,0.00011991,2]
[348158442,1736358671808,-500.0,0.00011991,2]
[348158443,1736358671817,-670.8,0.00011991,2]
[348158444,1736358671827,-500.0,0.00011991,2]
[348158445,1736358671838,-500.0,0.00011991,2]
[348158446,1736358671849,-500.0,0.00011991,2]
[348158447,1736358671859,-500.0,0.00011991,2]
[348158448,1736358671869,-932.54,0.00011991,2]
[348158449,1736358671880,-545.36,0.00011991,2]
[348158450,1736358671890,-500.0,0.00011991,2]
[348158451,1736358671899,-500.0,0.00011991,2]
[348158452,1736358671908,-500.0,0.00011991,2]
[348158453,1736358671917,-1666.65,0.00011991,2]
[348158454,1736358671927,-500.0,0.00011991,2]
[348158455,1736358671937,-222.34,0.00011991,2]
[348158456,1736358671947,-967.75,0.00011991,2]
[348158457,1736358671956,-500.0,0.00011991,2]
[348158458,1736358671966,-500.0,0.00011991,2]
[348158459,1736358671976,-500.0,0.00011991,2]
[348158460,1736358671985,-500.0,0.00011991,2]
[348158461,1736358671995,-647.46,0.00011991,2]
[348158462,1736358672004,-500.0,0.00011991,2]
[348158463,1736358672013,-1567.94,0.00011991,2]
[348158464,1736358672023,-3100.14,0.00011991,2]
[348158465,1736358672032,-743.069268,0.00011991,2]
[348158466,1736358672042,-500.0,0.00011991,2]
[348158467,1736358672052,-500.0,0.00011991,2]
[348158468,1736358672062,-661.3318,0.00011991,2]
[348158469,1736358672072,-577.7,0.00011991,2]
[348158470,1736358672081,-373.65,0.00011991,2]
[348158471,1736358672091,-2800.0,0.00011991,2]
[348158472,1736358672100,-500.0,0.00011991,2]
[348158473,1736358672110,-1204.5,0.00011991,2]
[348158474,1736358672120,-212.85,0.00011991,2]
[348158475,1736358672130,-2894.34,0.00011991,2]
[348158476,1736358672140,-500.0,0.00011991,2]
[348158477,1736358672151,-1392.16,0.00011991,2]
[348158478,1736358672161,-500.0,0.00011991,2]
[348158479,1736358672171,-500.0,0.00011991,2]
[348158480,1736358672181,-500.0,0.00011991,2]
[348158481,1736358672190,-633.08,0.00011991,2]
[348158482,1736358672199,-2974.5,0.00011991,2]
[348158483,1736358672209,-2170.29,0.00011991,2]
[348158484,1736358672219,-500.0,0.00011991,2]
[348158485,1736358672228,-500.0,0.00011991,2]
[348158486,1736358672238,-684.22,0.00011991,2]
[348158487,1736358672247,-500.0,0.00011991,2]
[348158488,1736358672257,-500.0,0.00011991,2]
[348158489,1736358672267,-500.0,0.00011991,2]
[348158490,1736358672277,-1093.14,0.00011991,2]
[348158491,1736358672286,-500.0,0.00011991,2]
[348158492,1736358672296,-2357.74,0.00011991,2]
[348158493,1736358672306,-500.0,0.00011991,2]
[348158494,1736358672315,-500.0,0.00011991,2]
[348158495,1736358672325,-500.0,0.00011991,2]
[348158496,1736358672335,-1313.2,0.00011991,2]
[348158497,1736358672345,-1234.42,0.00011991,2]
[348158498,1736358672355,-895.52,0.00011991,2]
[348158499,1736358672365,-534.52,0.00011991,2]
[348158500,1736358672375,-538.11,0.00011991,2]
[348158501,1736358672386,-500.0,0.00011991,2]
[348158502,1736358672396,-500.0,0.00011991,2]
[348158503,1736358672409,-957.62,0.00011991,2]
[348158504,1736358672419,-1751.04,0.00011991,2]
[348158505,1736358672430,-2455.11,0.00011991,2]
[348158506,1736358672439,-532.55,0.00011991,2]
[348158507,1736358672449,-500.0,0.00011991,2]
[348158508,1736358672459,-526.01,0.00011991,2]
[348158509,1736358672469,-500.0,0.00011991,2]
[348158510,1736358672479,-535.44,0.00011991,2]
[348158511,1736358672489,-500.0,0.00011991,2]
[348158512,1736358672499,-1399.45,0.00011991,2]
[348158513,1736358672509,-535.05,0.00011991,2]
[348158514,1736358672518,-1386.23,0.00011991,2]
[348158515,1736358672527,-682.66,0.00011991,2]
[348158516,1736358672537,-1070.5,0.00011991,2]
[348158517,1736358672546,-500.0,0.00011991,2]
[348158518,1736358672556,-500.0,0.00011991,2]
[348158519,1736358672565,-1322.17,0.00011995,2]
[348158520,1736358672574,-1939.95,0.00011995,2]
[348158521,1736358672584,-5591.78,0.00011995,2]
[348158522,1736358672593,-568.8,0.00011995,2]
[348158523,1736358672603,-543.87,0.00011995,2]
[348158524,1736358672613,-500.0,0.00011995,2]
[348158525,1736358672622,-1960.67,0.00011995,2]
[348158526,1736358672632,-557.32,0.00011995,2]
[348158527,1736358672642,-843.3,0.00011995,2]
[348158528,1736358672654,-717.18,0.00011995,2]
[348158529,1736358672664,-150.0,0.00011999,2]
[348158530,1736358672674,-777.34088942,0.00012,2]
[348158531,1736358672683,-12645.34402741,0.00012,7]
[348158532,1736358672693,-184826.53274147,0.00012,2]
[348158533,1736358672703,-1500.0,0.00012002,2]
[348158534,1736358672713,-1500.0,0.0001201,2]
[348158535,1736358672722,-2178.58,0.00012011,2]
[348158536,1736358672733,-4716.54184463,0.00012012,4]
[348158537,1736358672743,-1500.0,0.00012018,2]
[348158538,1736358672752,-1500.0,0.00012022,2]
[348158539,1736358672761,-1500.0,0.00012027,2]
[348158540,1736358672770,-1500.0,0.0001203,2]
[348158541,1736358672779,-1500.0,0.00012039,2]
[348158542,1736358672789,-150.0,0.00012051,2]
[348158543,1736358672799,-317.3361422,0.00012053,2]
[348158544,1736358672812,-200.0,0.00012055,2]
[348158545,1736358672822,-150.0,0.00012057,2]
[348158546,1736358672832,-173.84,0.00012058,2]
[348158547,1736358672842,-150.0,0.00012058,2]
[348158548,1736358672852,-587.42,0.00012061,2]
[348158549,1736358672861,-1051.18,0.00012067,2]
[348158550,1736358672871,-500.0,0.00012069,2]
[348158551,1736358672882,-835.61,0.00012069,2]
[348158552,1736358672892,-500.0,0.00012069,2]
[348158553,1736358672905,-641.86,0.00012069,2]
[348158554,1736358672914,-500.0,0.00012069,2]
[348158555,1736358672923,-615.0,0.00012069,2]
[348158556,1736358672933,-1257.65,0.00012069,2]
[348158557,1736358672943,-698.7,0.0001207,2]
[348158558,1736358672952,-1000.0,0.0001207,2]
[348158559,1736358672962,-523.81,0.0001207,2]
[348158560,1736358672973,-500.0,0.0001207,2]
[348158561,1736358672982,-1321.17,0.0001207,2]
[348158562,1736358672991,-1035.42,0.0001207,2]
[348158563,1736358673001,-202.0,0.0001208,2]
[348158564,1736358673010,-1500.0,0.00012081,2]
[348158565,1736358673020,-354.65133696,0.0001209,2]
[348158566,1736358673029,-500.0,0.0001209,2]
[348158567,1736358673039,-500.0,0.0001209,2]
[348158568,1736358673048,-613.51,0.0001209,2]
[348158569,1736358673058,-652.44,0.0001209,2]
[348158570,1736358673069,-500.0,0.0001209,2]
[348158571,1736358673080,-660.33,0.0001209,2]
[348158572,1736358673089,-669.83,0.0001209,2]
[348158573,1736358673099,-500.0,0.0001209,2]
[348158574,1736358673109,-500.0,0.0001209,2]
[348158575,1736358673119,-481.24,0.0001209,2]
[348158576,1736358673128,-176.07293838,0.0001209,2]
[348158577,1736358673139,-292.25124154,0.0001209,2]
[348158578,1736358673148,-500.0,0.0001209,2]
[348158579,1736358673164,-500.0,0.0001209,2]
[348158580,1736358673174,-497.65,0.0001209,2]
[348158581,1736358673184,-500.0,0.0001209,2]
[348158582,1736358673193,-500.0,0.0001209,2]
[348158583,1736358673203,-500.0,0.0001209,2]
[348158584,1736358673212,-500.0,0.0001209,2]
[348158585,1736358673222,-500.0,0.0001209,2]
[348158586,1736358673232,-732.89,0.0001209,2]
[348158587,1736358673242,-668.24,0.0001209,2]
[348158588,1736358673252,-551.84,0.0001209,2]
[348158589,1736358673261,-238.1304612,0.0001209,2]
[348158590,1736358673271,-500.0,0.0001209,2]
[348158591,1736358673281,-561.09,0.0001209,2]
[348158592,1736358673290,-1973.53,0.000121,2]
[348158593,1736358673300,-88017.60428636,0.000121,2]
[348158594,1736358673310,-1584.6,0.000121,2]
[348158595,1736358673319,-150.0,0.00012106,2]
[348158596,1736358673330,-150.0,0.00012114,2]
[348158597,1736358673339,-212854.74685834,0.00012116,2]
[348158598,1736358673349,-150.0,0.00012119,2]
[348158599,1736358673359,-150.0,0.00012123,2]
[348158600,1736358673369,-555.04,0.00012128,2]
[348158601,1736358673379,-150.0,0.00012128,2]
[348158602,1736358673389,-150.0,0.00012129,2]
[348158603,1736358673399,-1500.0,0.0001213,2]
[348158604,1736358673411,-1500.0,0.00012132,2]
[348158605,1736358673420,-150.0,0.00012136,2]
[348158606,1736358673430,-917.30224934,0.0001214,2]
[348158607,1736358673440,-150.0,0.00012142,2]
[348158608,1736358673450,-150.0,0.00012142,2]
[348158609,1736358673459,-1500.0,0.00012142,2]
[348158610,1736358673469,-150.0,0.00012151,2]
[348158611,1736358673478,-150.0,0.00012169,2]
[348158612,1736358673487,-500.0,0.00012179,2]
[348158613,1736358673497,-500.0,0.00012179,2]
[348158614,1736358673506,-500.0,0.00012179,2]
[348158615,1736358673517,-500.0,0.00012179,2]
[348158616,1736358673526,-150.0,0.00012182,2]
[348158617,1736358673535,-150.0,0.00012183,2]
[348158618,1736358673545,-150.0,0.00012192,2]
[348158619,1736358673555,-1500.0,0.00012194,2]
[348158620,1736358673564,-150.0,0.00012195,2]
[348158621,1736358673574,-2178.58,0.00012199,2]
[348158622,1736358673583,-100007.47245914,0.000122,2]
[348158623,1736358673593,-93411.17792296,0.000122,2]
[348158624,1736358673603,-150.0,0.000122,2]
[348158625,1736358673612,-153.007601,0.000122,2]
[348158626,1736358673621,-153.007601,0.000122,2]
[348158627,1736358673631,-1057.0,0.000122,2]
[348158628,1736358673641,-7873.83441692,0.000122,2]
[348158629,1736358673653,-2000.0,0.00012201,2]
[348158630,1736358673662,-200.0,0.00012201,2]
[348158631,1736358673672,-150.0,0.00012203,2]
[348158632,1736358673681,-1083.11,0.00012227,2]
[348158633,1736358673690,-516.58,0.00012227,2]
[348158634,1736358673700,-500.0,0.00012227,2]
[348158635,1736358673709,-984.28,0.00012227,2]
[348158636,1736358673719,-1369.61,0.00012227,2]
[348158637,1736358673728,-1218.11,0.00012227,2]
[348158638,1736358673738,-914.32,0.00012227,2]
[348158639,1736358673748,-1814.27,0.00012227,2]
[348158640,1736358673757,-798.74,0.00012227,2]
[348158641,1736358673767,-3201.05,0.00012227,2]
[348158642,1736358673776,-2717.33,0.00012227,2]
[348158643,1736358673785,-415.88633194,0.00012227,2]
[348158644,1736358673795,-1247.08,0.00012227,2]
[348158645,1736358673809,-2263.75,0.00012227,2]
[348158646,1736358673819,-1013.56,0.00012227,2]
[348158647,1736358673829,-546.88,0.00012227,2]
[348158648,1736358673840,-959.73,0.00012227,2]
[348158649,1736358673850,-902.05,0.00012227,2]
[348158650,1736358673859,-1571.05,0.00012227,2]
[348158651,1736358673869,-1011.19,0.00012228,2]
[348158652,1736358673879,-1352.67,0.00012228,2]
[348158653,1736358673888,-878.9,0.00012228,2]
[348158654,1736358673898,-766.28,0.00012228,2]
[348158655,1736358673910,-500.0,0.00012228,2]
[348158656,1736358673920,-762.31,0.00012228,2]
[348158657,1736358673929,-2056.21,0.00012228,2]
[348158658,1736358673939,-1011.92,0.00012228,2]
[348158659,1736358673949,-500.0,0.00012228,2]
[348158660,1736358673958,-1500.0,0.00012235,2]
[348158661,1736358673968,-1500.0,0.00012237,2]
[348158662,1736358673977,-150.0,0.00012239,2]
[348158663,1736358673987,-150.0,0.00012241,2]
[348158664,1736358673997,-150.0,0.00012248,2]
[348158665,1736358674007,-150.0,0.00012257,2]
[348158666,1736358674016,-500.0,0.00012265,2]
[348158667,1736358674026,-522.19,0.00012265,2]
[348158668,1736358674035,-500.0,0.00012265,2]
[348158669,1736358674044,-500.0,0.00012265,2]
[348158670,1736358674054,-500.0,0.00012265,2]
[348158671,1736358674066,-500.0,0.00012265,2]
[348158672,1736358674077,-555.04,0.00012265,2]
[348158673,1736358674086,-567.11,0.00012265,2]
[348158674,1736358674096,-737.87,0.00012265,2]
[348158675,1736358674105,-500.0,0.00012265,2]
[348158676,1736358674115,-607.18,0.00012265,2]
[348158677,1736358674125,-500.0,0.00012265,2]
[348158678,1736358674135,-670.8,0.00012265,2]
[348158679,1736358674145,-500.0,0.00012265,2]
[348158680,1736358674156,-500.0,0.00012265,2]
[348158681,1736358674166,-500.0,0.00012265,2]
[348158682,1736358674327,-500.0,0.00012265,2]
[348158683,1736358674337,-932.54,0.00012265,2]
[348158684,1736358674347,-545.36,0.00012265,2]
[348158685,1736358674356,-500.0,0.00012265,2]
[348158686,1736358674366,-500.0,0.00012265,2]
[348158687,1736358674376,-500.0,0.00012265,2]
[348158688,1736358674385,-1666.65,0.00012265,2]
[348158689,1736358674395,-500.0,0.00012265,2]
[348158690,1736358674407,-967.75,0.00012265,2]
[348158691,1736358674416,-409.27,0.00012265,2]
[348158692,1736358674426,-500.0,0.00012265,2]
[348158693,1736358674436,-500.0,0.00012265,2]
[348158694,1736358674446,-500.0,0.00012265,2]
[348158695,1736358674455,-647.46,0.00012265,2]
[348158696,1736358674465,-440.57,0.00012265,2]
[348158697,1736358674474,-1567.94,0.00012265,2]
[348158698,1736358674484,-3100.14,0.00012265,2]
[348158699,1736358674494,-743.069268,0.00012265,2]
[348158700,1736358674504,-500.0,0.00012265,2]
[348158701,1736358674514,-500.0,0.00012265,2]
[348158702,1736358674524,-577.7,0.00012265,2]
[348158703,1736358674534,-661.3318,0.00012265,2]
[348158704,1736358674543,-2800.0,0.00012265,2]
[348158705,1736358674553,-268.55,0.00012265,2]
[348158706,1736358674563,-1204.5,0.00012265,2]
[348158707,1736358674574,-2894.34,0.00012265,2]
[348158708,1736358674583,-500.0,0.00012265,2]
[348158709,1736358674593,-1392.16,0.00012265,2]
[348158710,1736358674603,-500.0,0.00012265,2]
[348158711,1736358674613,-500.0,0.00012265,2]
[348158712,1736358674623,-500.0,0.00012265,2]
[348158713,1736358674632,-633.08,0.00012265,2]
[348158714,1736358674642,-2974.5,0.00012265,2]
[348158715,1736358674653,-2170.29,0.00012265,2]
[348158716,1736358674663,-500.0,0.00012265,2]
[348158717,1736358674674,-500.0,0.00012265,2]
[348158718,1736358674684,-684.22,0.00012265,2]
[348158719,1736358674693,-500.0,0.00012265,2]
[348158720,1736358674703,-500.0,0.00012265,2]
[348158721,1736358674712,-500.0,0.00012265,2]
[348158722,1736358674722,-1093.14,0.00012265,2]
[348158723,1736358674732,-500.0,0.00012265,2]
[348158724,1736358674741,-2357.74,0.00012265,2]
[348158725,1736358674751,-500.0,0.00012265,2]
[348158726,1736358674761,-588.93226024,0.00012265,2]
[348158727,1736358674770,-500.0,0.00012265,2]
[348158728,1736358674779,-1313.2,0.00012265,2]
[348158729,1736358674790,-1234.42,0.00012265,2]
[348158730,1736358674805,-895.52,0.00012265,2]
[348158731,1736358674815,-158.44408375,0.00012265,2]
[348158732,1736358674824,-500.0,0.00012265,2]
[348158733,1736358674834,-957.62,0.00012265,2]
[348158734,1736358674845,-1751.04,0.00012265,2]
[348158735,1736358674855,-2455.11,0.00012265,2]
[348158736,1736358674865,-532.55,0.00012265,2]
[348158737,1736358674876,-500.0,0.00012265,2]
[348158738,1736358674886,-526.01,0.00012265,2]
[348158739,1736358674896,-500.0,0.00012265,2]
[348158740,1736358674907,-535.44,0.00012265,2]
[348158741,1736358674918,-500.0,0.00012265,2]
[348158742,1736358674927,-1399.45,0.00012265,2]
[348158743,1736358674937,-535.05,0.00012265,2]
[348158744,1736358674946,-1386.23,0.00012265,2]
[348158745,1736358674956,-682.66,0.00012265,2]
[348158746,1736358674966,-1070.5,0.00012265,2]
[348158747,1736358674976,-366.83500018,0.00012265,2]
[348158748,1736358674986,-1322.17,0.00012269,2]
[348158749,1736358674995,-1939.95,0.00012269,2]
[348158750,1736358675005,-5591.78,0.00012269,2]
[348158751,1736358675015,-568.8,0.00012269,2]
[348158752,1736358675024,-543.87,0.00012269,2]
[348158753,1736358675034,-500.0,0.00012269,2]
[348158754,1736358675043,-1960.67,0.00012269,2]